{"text_format":"1","workbook":"xlsx","n_sheets":9,"sheets":["Home","TrueSight Presentation Server","App Visibility Portal","App Visibility Collector","App Visibility Proxy","App Vis Multiple Components","App Visibility Agent for Java","App Visibility Agent for .NET","Synthetic TEA Agent"],"not_rendered":{"charts":0,"images":0,"macros":0,"external_links":0,"defined_names":0,"comments":0,"pivot_tables":0},"unopened":[],"bounds":{"document_bytes":16777216,"sheet_cells":100000,"rows_first":2000,"rows_last":500,"rows_between":2000,"halvings":0,"cell_chars":16384,"cell_head_chars":4096},"cells_cut":0,"cells_raw":0,"read":"whole","date_system":"1900"}

{"sheet":"Home","index":0,"n_rows":14,"n_cols":1,"rows_kept":14,"cut":false,"hidden":false,"merged":[]}
["Instructions for Using the Planning Spreadsheets"]
[]
["The tabs in this file contain lists of fields that you will encounter with each installation utility.  Each tab corresponds to a particular installation utility Save this file, and complete the worksheet before you start each installation process."]
[]
["TrueSight Presentation Server"]
["App Visibility Server Components"]
["App Visibility Portal"]
["App Visibility Collector"]
["App Visibility Proxy"]
["App Visibility Multiple Components"]
["App Visibility Server Agent"]
["App Visibility Agent for Java"]
["App Visibility Agent for .NET"]
["Synthetic TEA Agent"]

{"sheet":"TrueSight Presentation Server","index":1,"n_rows":43,"n_cols":3,"rows_kept":43,"cut":false,"hidden":false,"merged":[[0,0,0,2],[23,2,24,2],[29,2,30,2],[36,2,37,2],[26,2,27,2],[10,0,10,2],[21,0,21,2],[34,0,34,2]]}
["The BMC TrueSight Presentation Server installation consists of the following requirements."]
[]
["License Agreement","Default value displayed ","Comments"]
["Agree or do not agree to Presentation Server license agreement.","I do NOT agree to the terms of the license agreement","Approve license agreement to continue with installation. \nYou are unable to proceed with the installation without agreeing to the license agreement. "]
["Directory Selection","Default value displayed ","Comments"]
["Default path for the installation directory.","Windows\nC:\\Program Files\\BMC Software\\TrueSightPServer\n\nLinux\n/opt/bmc/TrueSightPServer","The installer checks if you have adequate disk space  to install BMC TrueSight Presentation Server.\nOn Linux computers, BMC recommends using the default installation directory. Otherwise, you might experience issues related to permissions and access."]
["Listening Address Configuration","Default value displayed ","Comments"]
["Localhost Fully Qualified Domain Name (FQDN)","Default system FQDN. ","The installer detects your system's localhost FQDN. Or, you can enter an alternate FQDN.\nThis information is used by other TrueSight components to connect to the Presentation Server."]
["Presentation Server High Availability Settings","Default value displayed ","Comments"]
["Enabled/Disabled","Disabled","Select Enable to enter the required High Availability (HA) option details. The HA option ensures that a primary or secondary server is available to support the Presentation Server. "]
["Note: If you do not use the default High Availability port numbers, only use port numbers above 1024 for these ports."]
["Primary Server/Secondary Server","Primary","Any event raised in the Presentation Server is set in the Primary Server. The Secondary Server maintains a constantly updated cache memory of the Presentation Server activity."]
["Server Pair Name",null,"The elasticsearch cluster name for one node (server), or more nodes, that holds all of the data, and provides federated indexing and search capabilities across all nodes.\nThe default value for the cluster name is \"truesight\". You can change this name to reflect the logical group name of the cluster."]
["Cache Replication Port",7800,"Port number for the primary server cache replication."]
["Control Port",8800,"Port number for the primary server control port."]
["Secondary Server FQDN",null,"Enter a name for the secondary server host."]
["Secondary Server Database Port",5432,"Port number for the secondary server database port."]
["Secondary Cache Replication Port",7800,"Port number for the secondary server cache replication."]
["Secondary Control Port",8800,"Port number for the secondary server control port."]
["High Availability Configuration File",null,"If the Secondary Server option is selected, enter the path for the HA configuration file to upload during the Presentation Server installation."]
["Presentation Server Port Settings","Default value displayed ","Comments"]
["For Windows systems, if you do not use the default port numbers, only use port numbers between 1 and 65535.\nFor Linux systems, if you do not use the default port numbers, only use port numbers between 1024 and 65535."]
["Windows Tomcat Ports"]
["HTTP",80,"BMC recommends using the default port numbers. "]
["HTTPS",443]
["Linux Tomcat Ports"]
["HTTP",8080,"BMC recommends using the default port numbers. \nIf you do not use the Linux default port numbers, only use port numbers above 1024 for these ports."]
["HTTPS",8443]
["Elasticsearch Ports"]
["Representational State Transfer (REST)",9200,"BMC recommends using the default port numbers. "]
["Java/Node Client",9300]
["Cell Gateway Port"]
["Event Ingress (from Infrastructure Management)",1900,"BMC recommends using the default port numbers. "]
["PostgreSQL Database Settings","Default value displayed ","Comments"]
["The database user name and password cannot exceed 30 characters.\nFor Windows systems, if you do not use the default database port number, only use a port number between 1 and 65535.\nFor Linux systems, if you do not use the default database port number, only use a port number between 1024 and 65535."]
["User Name",null,"User name for the PostgreSQL database that is created during the Presentation Server installation."]
["Password",null,"User password for the database.\nThe database user name and password cannot exceed 30 characters."]
["Confirm Password"]
["Port",5432,"Port number for the PostgreSQL database. "]
["Remedy Single Sign-On Server Settings","Default value displayed ","Comments"]
["Host Name (FQDN)",null,"The host name or Fully Qualified Domain Name (FQDN) for the Remedy Single Sign-On server."]
["Port",null,"Port number for the Remedy Single Sign-On server\nIf you don't use the default port number, use the port number of the Remedy Single Sign-On server installed on the system.\nWindows:\n    HTTP: 88\n    HTTPS: 448\nLinux:\n    HTTP: 8088\n    HTTPS: 8048"]
["Password",null,"The Remedy Single Sign-On server super user password. The Single Sign-On super user name is Admin and the default password is RSSO#Admin#."]

{"sheet":"App Visibility Portal","index":2,"n_rows":23,"n_cols":3,"rows_kept":23,"cut":false,"hidden":false,"merged":[[0,0,0,2]]}
["The BMC App Visibility Portal installation consists of the following requirements."]
[]
["License Agreement","Default value displayed ","Comments"]
["Agree or do not agree to Presentation Server license agreement.","I do NOT agree to the terms of the license agreement","Approve license agreement to continue with installation. \nYou are unable to proceed with the installation without agreeing to the license agreement. "]
["Program Installation","Default value displayed ","Comments"]
["Select component to install.",null,"Select the App Visibility Portal component."]
["Directory Selection","Default value displayed ","Comments"]
["Destination Directory.","Windows\nC:\\Program Files\\BMC Software\\App Visibility\n\nLinux\n/opt/bmc/App_Visibility","The installer checks if you have adequate disk space  to install the selected component.\nOn Linux computers, BMC recommends using the default installation directory. Otherwise, you might experience issues related to permissions and access."]
["Portal Configuration","Default value displayed ","Comments"]
["Communication Port",8100,"Listening port of the App Visibility portal."]
["Supportability Port",8101,"Listening port of the portal support console. \nA support console to help detect issues is automatically activated with one-way SSL authentication."]
["Database Configuration","Default value displayed ","Comments"]
["Database Port ",8800,"The new database is created under the installationDirectory\\ADOP_DB directory."]
["Data Retention Time (days)",35,"Number of days that the App Visibility portal database saves the historical data before it is overwritten. The overwrite function launches automatically when the system reaches the specified retention time."]
["Maximum Data Storage (GB)",100,"Maximum disk space allowed for data storage. \nRegardless of the value defined for the data retention time, the historical data is overwritten when the maximum data storage level is reached. "]
["High Availability, Current HA Node","Default value displayed ","Comments"]
["Enable High Availability",null,"Select to enable a high availability environment. \nThis screen is not displayed if more than one component is selected. "]
["Node FQDN","[FQDN of current computer]","The FQDN of the current computer is automatically entered; ensure that it is accessible from other components."]
["Node Port",8102,"HA control port of the current component\nThe port is dedicated for communication between nodes."]
["Alternate HA Node","Default value displayed ","Comments"]
["Node FQDN",null,"FQDN of the alternate component's computer"]
["Node Port",8102,"HA control port of the alternate component\nThe port is dedicated for communication between nodes."]
["Database Port ",8800,"Listening port that is used by the alternate component's App Visibility database"]

{"sheet":"App Visibility Collector","index":3,"n_rows":32,"n_cols":3,"rows_kept":32,"cut":false,"hidden":false,"merged":[[0,0,0,2],[12,0,12,2],[25,0,25,1]]}
["The BMC App Visibility Collector installation consists of the following requirements."]
[]
["License Agreement","Default value displayed ","Comments"]
["Agree or do not agree to Presentation Server license agreement.","I do NOT agree to the terms of the license agreement","Approve license agreement to continue with installation. \nYou are unable to proceed with the installation without agreeing to the license agreement. "]
["Program Installation","Default value displayed ","Comments"]
["Select component to install.",null,"Select the App Visibility Collector component."]
["Directory Selection","Default value displayed ","Comments"]
["Destination Directory.","Windows\nC:\\Program Files\\BMC Software\\App Visibility\n\nLinux\n/opt/bmc/App_Visibility","The installer checks if you have adequate disk space  to install the selected component.\nOn Linux computers, BMC recommends using the default installation directory. Otherwise, you might experience issues related to permissions and access."]
["Collector Configuration","Default value displayed ","Comments"]
["Communication Port",8200,"Listening port of the App Visibility collector."]
["Supportability  Port",8201,"Listening port of the collector support console. \nA support console to help detect issues is automatically activated with one-way SSL authentication."]
["App Visibility Portal Connection ","Default value displayed ","Comments"]
["Note: The App Visibility portal connection information is only required if the App Visibility collector is installed on a computer that does not have an App Visibility portal installation."]
["Portal Host or IP",null,"Portal host name or IP address"]
["Portal Port",8100,"Listening port of the App Visibility portal. \nEnter the same port number that you entered in the portal configuration steps. "]
["Listening Address Configuration","Default value displayed ","Comments"]
["Address","[Address of the current computer] ","The default address is received from the operating system. If required, change the default address to the host name or IP address of the computer on which you are installing. The App Visibility components use this address to contact the computer on which you are installing the components."]
["Database Setup","Default value displayed ","Comments"]
["Database Port",8800,"The new database is created under the installationDirectory\\ADOP_DB directory."]
["Data Retention Time (days)",35,"Number of days that the App Visibility portal database saves the historical data before it is overwritten. The overwrite function launches automatically when the system reaches the specified retention time."]
["Maximum Data Storage (GB)",100,"Maximum disk space allowed for data storage. \nRegardless of the value defined for the data retention time, the historical data is overwritten when the maximum data storage level is reached. "]
["High Availability, Current HA Node","Default value displayed ","Comments"]
["Enable High Availability",null,"Select to enable a high availability environment. \nThis screen is not displayed if more than one component is selected. "]
["Node FQDN","[FQDN of current computer]","The FQDN of the current computer is automatically entered; ensure that it is accessible from other components."]
["Node Port",8202,"HA control port of the current component\nThe port is dedicated for communication between nodes."]
["Load balancing server the manages connection to the collector"]
["Load Balancer Host Name",null,"Host name or IP address of the load balancing server that manages access to the collector"]
["Load Balancer Port"]
["Alternate HA Node","Default value displayed ","Comments"]
["Node FQDN",null,"FQDN of the alternate component's computer"]
["Node Port",8202,"HA control port of the alternate component\nThe port is dedicated for communication between nodes."]
["Database Port ",8800,"Listening port that is used by the alternate component's App Visibility database"]

{"sheet":"App Visibility Proxy","index":4,"n_rows":27,"n_cols":3,"rows_kept":27,"cut":false,"hidden":false,"merged":[[0,0,0,2],[22,0,22,2]]}
["The BMC App Visibility Proxy installation consists of the following requirements."]
[]
["License Agreement","Default value displayed ","Comments"]
["Agree or do not agree to Presentation Server license agreement.","I do NOT agree to the terms of the license agreement","Approve license agreement to continue with installation. \nYou are unable to proceed with the installation without agreeing to the license agreement. "]
["Program Installation","Default value displayed ","Comments"]
["Select component to install.",null,"Select the App Visibility Proxy component."]
["Directory Selection","Default value displayed ","Comments"]
["Default path for the installation directory.","Windows\nC:\\Program Files\\BMC Software\\App Visibility\n\nLinux\n/opt/bmc/App_Visibility","The installer checks if you have adequate disk space  to install the selected component.\nOn Linux computers, BMC recommends using the default installation directory. Otherwise, you might experience issues related to permissions and access."]
["Proxy Configuration","Default value displayed ","Comments"]
["Proxy Communication Port",8300,"Listening port of the proxy, communication from the portal and collector."]
["Supportability  Port",8301,"Listening port of the proxy server console. \nA support console to help detect issues is automatically activated with one-way SSL authentication."]
["Beacon Receiver HTTP Port",880,"Listening port of the beacon receiver, HTTP communication from the end-user's browser."]
["Beacon Receiver HTTPS Port",8444,"Listening port of the beacon receiver, HTTPS communication from the end-user's browser."]
["Proxy KeyStore  Configuration","Default value displayed ","Comments"]
["Import KeyStore file post-installation and restart the service afterwards",null,"Select when to import the Keystore file. "]
["If the file is imported during installation:"]
["Import KeyStore file now",null,"Select Import KeyStore file now."]
["KeyStore Type","JKS","Select the KeyStore file type, JKS or PKCS12."]
["KeySTore Alias",null,"Enter the KeyStore alias."]
["KeyStore  Password",null,"Enter the KeyStore password, if one exists. \nThe KeyStore password cannot contain the following characters: \n| ^ ; \" < > ,"]
["KeyStore File Path",null,"Enter the full path or click browse to the location of the KeyStore file."]
["App Visibility Portal Connection ","Default value displayed ","Comments"]
["Note: The App Visibility portal connection information is only required if the App Visibility proxy is installed on a computer that does not have an App Visibility portal installation."]
["Portal Host or IP",null,"Portal host name or IP address"]
["Portal Port",8100,"Listening port of the App Visibility portal. \nEnter the same port number that you entered in the portal configuration steps. "]
["Listening Address Configuration","Default value displayed ","Comments"]
["Address","[Address of the current computer] ","The default address is received from the operating system. If required, change the default address to the host name or IP address of the computer on which you are installing. The App Visibility components use this address to contact the computer on which you are installing the components."]

{"sheet":"App Vis Multiple Components","index":5,"n_rows":39,"n_cols":3,"rows_kept":39,"cut":false,"hidden":false,"merged":[[0,0,0,2],[29,0,29,2],[5,2,7,2],[34,0,34,2]]}
["To install App Visibility multiple components on the same computer, use the following requirements."]
[]
["License Agreement","Default value displayed ","Comments"]
["Agree or do not agree to Presentation Server license agreement.","I do NOT agree to the terms of the license agreement","Approve license agreement to continue with installation. \nYou are unable to proceed with the installation without agreeing to the license agreement. "]
["Component(s) Installation","Default value displayed ","Comments"]
["Select components to install.",null,"Select the App Visibility server component, or components , that you want to install. Installation configuration pages are displayed only for the selected component or components.\nHigh availability options are not available if you select more than one component."]
[]
[]
["Directory Selection","Default value displayed ","Comments"]
["Destination Directory","Windows\nC:\\Program Files\\BMC Software\\App Visibility\n\nLinux\n/opt/bmc/App_Visibility","The installer checks if you have adequate disk space  to install the selected component or components.\nOn Linux computers, BMC recommends using the default installation directory. Otherwise, you might experience issues related to permissions and access."]
[{"$f":"'App Visibility Portal'!$A$9","v":"Portal Configuration"},{"$f":"'App Visibility Portal'!$B$9","v":"Default value displayed "},{"$f":"'App Visibility Portal'!$C$9","v":"Comments"}]
[{"$f":"'App Visibility Portal'!$A$10","v":"Communication Port"},{"$f":"'App Visibility Portal'!$B$10","v":8100},{"$f":"'App Visibility Portal'!$C$10","v":"Listening port of the App Visibility portal."}]
[{"$f":"'App Visibility Portal'!$A$11","v":"Supportability Port"},{"$f":"'App Visibility Portal'!$B$11","v":8101},{"$f":"'App Visibility Portal'!$C$11","v":"Listening port of the portal support console. \nA support console to help detect issues is automatically activated with one-way SSL authentication."}]
[{"$f":"'App Visibility Collector'!A9","v":"Collector Configuration"},{"$f":"'App Visibility Collector'!B9","v":"Default value displayed "},{"$f":"'App Visibility Collector'!C9","v":"Comments"}]
[{"$f":"'App Visibility Collector'!A10","v":"Communication Port"},{"$f":"'App Visibility Collector'!B10","v":8200},{"$f":"'App Visibility Collector'!C10","v":"Listening port of the App Visibility collector."}]
[{"$f":"'App Visibility Collector'!A11","v":"Supportability  Port"},{"$f":"'App Visibility Collector'!B11","v":8201},{"$f":"'App Visibility Collector'!C11","v":"Listening port of the collector support console. \nA support console to help detect issues is automatically activated with one-way SSL authentication."}]
[{"$f":"'App Visibility Proxy'!A9","v":"Proxy Configuration"},{"$f":"'App Visibility Proxy'!B9","v":"Default value displayed "},{"$f":"'App Visibility Proxy'!C9","v":"Comments"}]
[{"$f":"'App Visibility Proxy'!A10","v":"Proxy Communication Port"},{"$f":"'App Visibility Proxy'!B10","v":8300},{"$f":"'App Visibility Proxy'!C10","v":"Listening port of the proxy, communication from the portal and collector."}]
[{"$f":"'App Visibility Proxy'!A11","v":"Supportability  Port"},{"$f":"'App Visibility Proxy'!B11","v":8301},{"$f":"'App Visibility Proxy'!C11","v":"Listening port of the proxy server console. \nA support console to help detect issues is automatically activated with one-way SSL authentication."}]
[{"$f":"'App Visibility Proxy'!A12","v":"Beacon Receiver HTTP Port"},{"$f":"'App Visibility Proxy'!B12","v":880},{"$f":"'App Visibility Proxy'!C12","v":"Listening port of the beacon receiver, HTTP communication from the end-user's browser."}]
[{"$f":"'App Visibility Proxy'!A13","v":"Beacon Receiver HTTPS Port"},{"$f":"'App Visibility Proxy'!B13","v":8444},{"$f":"'App Visibility Proxy'!C13","v":"Listening port of the beacon receiver, HTTPS communication from the end-user's browser."}]
[{"$f":"'App Visibility Proxy'!A14","v":"Proxy KeyStore  Configuration"},{"$f":"'App Visibility Proxy'!B14","v":"Default value displayed "},{"$f":"'App Visibility Proxy'!C14","v":"Comments"}]
[{"$f":"'App Visibility Proxy'!A15","v":"Import KeyStore file post-installation and restart the service afterwards"},null,{"$f":"'App Visibility Proxy'!C15","v":"Select when to import the Keystore file. "}]
[{"$f":"'App Visibility Proxy'!A16","v":"If the file is imported during installation:"}]
[{"$f":"'App Visibility Proxy'!A17","v":"Import KeyStore file now"},null,{"$f":"'App Visibility Proxy'!C17","v":"Select Import KeyStore file now."}]
[{"$f":"'App Visibility Proxy'!A18","v":"KeyStore Type"},{"$f":"'App Visibility Proxy'!B18","v":"JKS"},{"$f":"'App Visibility Proxy'!C18","v":"Select the KeyStore file type, JKS or PKCS12."}]
[{"$f":"'App Visibility Proxy'!A20","v":"KeyStore  Password"},null,{"$f":"'App Visibility Proxy'!C20","v":"Enter the KeyStore password, if one exists. \nThe KeyStore password cannot contain the following characters: \n| ^ ; \" < > ,"}]
[{"$f":"'App Visibility Proxy'!A21","v":"KeyStore File Path"},null,{"$f":"'App Visibility Proxy'!C21","v":"Enter the full path or click browse to the location of the KeyStore file."}]
["App Visibility Portal Connection ","Default value displayed ","Comments"]
["Note: The App Visibility portal connection information is only required if the App Visibility proxy or collector is installed on a computer that does not have an App Visibility portal installation."]
["Portal Host or IP",null,"Portal host name or IP address"]
["Portal Port",8100,"Listening port of the App Visibility portal. \nEnter the same port number that you entered in the portal configuration steps. "]
["Listening Address Configuration","Default value displayed ","Comments"]
["Address",null,"The default address is received from the operating system. If required, change the default address to the host name or IP address of the computer on which you are installing. The App Visibility components use this address to contact the computer on which you are installing the components."]
["Note: The following information applies to App Visibility portal and collector installations. "]
[{"$f":"'App Visibility Portal'!A12","v":"Database Configuration"},{"$f":"'App Visibility Portal'!B12","v":"Default value displayed "},{"$f":"'App Visibility Portal'!C12","v":"Comments"}]
[{"$f":"'App Visibility Portal'!A13","v":"Database Port "},{"$f":"'App Visibility Portal'!B13","v":8800},{"$f":"'App Visibility Portal'!C13","v":"The new database is created under the installationDirectory\\ADOP_DB directory."}]
[{"$f":"'App Visibility Portal'!A14","v":"Data Retention Time (days)"},{"$f":"'App Visibility Portal'!B14","v":35},{"$f":"'App Visibility Portal'!C14","v":"Number of days that the App Visibility portal database saves the historical data before it is overwritten. The overwrite function launches automatically when the system reaches the specified retention time."}]
[{"$f":"'App Visibility Portal'!A15","v":"Maximum Data Storage (GB)"},{"$f":"'App Visibility Portal'!B15","v":100},{"$f":"'App Visibility Portal'!C15","v":"Maximum disk space allowed for data storage. \nRegardless of the value defined for the data retention time, the historical data is overwritten when the maximum data storage level is reached. "}]

{"sheet":"App Visibility Agent for Java","index":6,"n_rows":14,"n_cols":3,"rows_kept":14,"cut":false,"hidden":false,"merged":[[0,0,0,2]]}
["This installer is run through a command prompt. It does not have a wizard."]
[]
["License Agreement","Default value displayed ","Comments"]
["Agree or do not agree to Presentation Server license agreement.","I do NOT agree to the terms of the license agreement","Approve license agreement to continue with installation. \nYou are unable to proceed with the installation without agreeing to the license agreement. "]
["Directory Selection","Default value displayed ","Comments"]
["Default path for the installation directory.","C:\\Program Files (x86)\\BMC Software\\App Visibility\\Agent for Java","You can also click browse to install the agent in a different directory"]
["Agent Details","Default value displayed ","Comments"]
["Application Server Display Name",null,"This is the host name displayed in the BMC Application Management Console as the application server’s display name. "]
["Portal Connection Details","Default value displayed ","Comments"]
["Portal Server",null,"Enter the IP address or host name on which the App Visibility portal is (or will be) installed.\nIf a load balancing server manages access to the portal, enter the host name or IP address of the load balancer."]
["Portal Port",8100,"Enter the App Visibility portal port number.\nIf a load balancing server manages access to the portal, enter the port number of the load balancer."]
["Proxy Server","No Proxy","Proxy server details are required only if you are using a reverse proxy server or load balancing server. This is not the same server as the App Visibility proxy, which is used to collect end-user browser data."]
["Proxy Host Name or IP Address",null,"Enter the web proxy server host name or IP address."]
["Proxy Port",null,"Enter the web proxy server port number."]

{"sheet":"App Visibility Agent for .NET","index":7,"n_rows":14,"n_cols":3,"rows_kept":14,"cut":false,"hidden":false,"merged":[[0,0,0,2]]}
["To install the App Visibility agent for .NET on the computer with the application server you want to monitor, use the following requirements."]
[]
["License Agreement","Default value displayed ","Comments"]
["Agree or do not agree to Presentation Server license agreement.","I do NOT agree to the terms of the license agreement","Approve license agreement to continue with installation. \nYou are unable to proceed with the installation without agreeing to the license agreement. "]
["Directory Selection","Default value displayed ","Comments"]
["Default path for the installation directory.","C:\\Program Files (x86)\\BMC Software\\App Visibility\\Agent for .NET","You can also click browse to install the agent in a different directory"]
["Agent Details","Default value displayed ","Comments"]
["Application Server Display Name","[DNS host name]","This is the host name displayed in the BMC Application Management Console as the application server’s display name. "]
["Portal Connection","Default value displayed ","Comments"]
["Portal Server",null,"Enter the IP address or host name on which the App Visibility portal is (or will be) installed.\nIf a load balancing server manages access to the portal, enter the host name or IP address of the load balancer."]
["Portal Port",null,"Enter the App Visibility portal port number.\nIf a load balancing server manages access to the portal, enter the port number of the load balancer."]
["Proxy Server",null,"Proxy server details are required only if you are using a reverse proxy server or load balancing server. This is not the same server as the App Visibility proxy, which is used to collect end-user browser data."]
["HTTP Proxy Server Host",null,"Enter the web proxy server host name or IP address."]
["HTTP Proxy Server Port",null,"Enter the web proxy server port number."]

{"sheet":"Synthetic TEA Agent","index":8,"n_rows":17,"n_cols":3,"rows_kept":17,"cut":false,"hidden":false,"merged":[[0,0,0,2]]}
["The BMC Synthetic Transaction Execution Adapter (TEA) Agent installation consists of the following requirements."]
[]
["License Agreement","Default value displayed ","Comments"]
["Agree or do not agree to Presentation Server license agreement.","I do NOT agree to the terms of the license agreement","Approve license agreement to continue with installation. \nYou are unable to proceed with the installation without agreeing to the license agreement. "]
["Directory Selection","Default value displayed ","Comments"]
["Default path for the installation directory.","C:\\Program Files (x86)\\BMC Software\\BMCTEAAgent","You can also click browse to install the agent in a different directory"]
["Agent Configuration","Default value displayed ","Comments"]
["TEA Agent Name",null,"Name of the service that runs the TEA Agent on the host computer, and the Agent Name in the BMC Application Management Console.\nThe service name has a prefix, BMC TEA Agent, so the final name is BMC TEA Agent yourName. The yourName portion of the service name can be up to 40 characters.\nThe TEA Agent names must be unique. If you install more than one agent, enter a unique name for each agent."]
["Location",null,"Location name to which the TEA Agent will be associated.\nA TEA Agent is associated with any location that already exists in the system. If the location name is not in the system, a new Location is created."]
["Results Archive Password",null,"The password used to extract data from archived files in the execution logs.\nThe same password can be used for all of the TEA Agents, or you can set a different password for each agent. "]
["Confirm Password",null,"Re-enter the password."]
["TrueSight App Visibility Portal and Proxy Configuration","Default value displayed ","Comments"]
["Portal Server",null,"Host name or IP address of the computer with the server\nIf a load balancing server manages access to the portal, enter the host name or IP address of the load balancer."]
["Portal Port",8100,"Port number for the App Visibility Portal\nIf a load balancing server manages access to the portal, enter the port number of the load balancer."]
["Proxy Server","No Proxy","If you are connecting to the Portal using a proxy server, select  HTTP or SOCKS. Based on the selected value, additional fields for proxy server details are enabled."]
["Proxy Host Name or IP Address",null,"The Host name or IP address for the proxy server your agent uses to communicate."]
["Proxy Port",null,"Port number of the proxy server your agent uses to communicate."]